[Event "Titled Tuesday Blitz May 31 Late 2022"]
[White "Gomez Ledo, Roberto Carlos"]
[Black "Shapiro, David"]
[WhiteFideId "3507076"]
[BlackFideId "24133523"]
[WhiteElo "2379"]
[BlackElo "2300"]
[Result "0-1"]
[Round "06"]
[TimeControl "180+1"]
[Date "2022.06.01"]
[WhiteClock "0:00:04"]
[BlackClock "0:00:02"]

1. d4 {[%clk 0:03:00]}  Nf6 {[%clk 0:02:58]} 2. Bf4 {[%clk 0:03:00]}  g6 {[%clk 0:02:58]} 3. Nc3 {[%clk 0:02:59]}  Bg7 {[%clk 0:02:59]} 4. e4 {[%clk 0:02:59]}  d6 {[%clk 0:02:59]} 5. Qd2 {[%clk 0:02:58]}  c6 {[%clk 0:02:58]} 6. Bh6 {[%clk 0:02:57]}  Bxh6 {[%clk 0:02:55]} 7. Qxh6 {[%clk 0:02:58]}  Qa5 {[%clk 0:02:44]} 8. Bd3 {[%clk 0:02:57]}  Nbd7 {[%clk 0:02:37]} 9. Nf3 {[%clk 0:02:55]}  Qh5 {[%clk 0:02:32]} 10. Qd2 {[%clk 0:02:36]}  O-O {[%clk 0:02:25]} 11. Ne2 {[%clk 0:02:34]}  e5 {[%clk 0:02:02]} 12. Ng3 {[%clk 0:02:00]}  Qg4 {[%clk 0:02:00]} 13. h3 {[%clk 0:02:01]}  Qe6 {[%clk 0:02:00]} 14. O-O {[%clk 0:02:01]}  c5 {[%clk 0:01:45]} 15. c3 {[%clk 0:01:56]}  b6 {[%clk 0:01:41]} 16. Qh6 {[%clk 0:01:49]}  Bb7 {[%clk 0:01:30]} 17. d5 {[%clk 0:01:41]}  Qe7 {[%clk 0:01:29]} 18. Bb5 {[%clk 0:01:36]}  Rfd8 {[%clk 0:01:17]} 19. Bxd7 {[%clk 0:01:28]}  Nxd7 {[%clk 0:01:11]} 20. Ng5 {[%clk 0:01:16]}  Nf8 {[%clk 0:01:11]} 21. f4 {[%clk 0:01:14]}  f6 {[%clk 0:01:06]} 22. Nf3 {[%clk 0:01:06]}  exf4 {[%clk 0:00:56]} 23. Qxf4 {[%clk 0:01:07]}  Nd7 {[%clk 0:00:56]} 24. c4 {[%clk 0:00:51]}  Rf8 {[%clk 0:00:56]} 25. Nh2 {[%clk 0:00:48]}  Ne5 {[%clk 0:00:46]} 26. Ng4 {[%clk 0:00:43]}  Nxg4 {[%clk 0:00:44]} 27. Qxg4 {[%clk 0:00:44]}  Rae8 {[%clk 0:00:44]} 28. Rae1 {[%clk 0:00:40]}  Qe5 {[%clk 0:00:41]} 29. b3 {[%clk 0:00:31]}  Bc8 {[%clk 0:00:38]} 30. Qf3 {[%clk 0:00:27]}  f5 {[%clk 0:00:33]} 31. exf5 {[%clk 0:00:23]}  Qxe1 {[%clk 0:00:33]} 32. Rxe1 {[%clk 0:00:22]}  Rxe1+ {[%clk 0:00:33]} 33. Kh2 {[%clk 0:00:17]}  Bxf5 {[%clk 0:00:27]} 34. Nxf5 {[%clk 0:00:17]}  Rxf5 {[%clk 0:00:27]} 35. Qg3 {[%clk 0:00:18]}  Ree5 {[%clk 0:00:28]} 36. Qh4 {[%clk 0:00:18]}  Kg7 {[%clk 0:00:12]} 37. Qd8 {[%clk 0:00:17]}  Rf6 {[%clk 0:00:12]} 38. Qc7+ {[%clk 0:00:14]}  Kh6 {[%clk 0:00:08]} 39. Qxa7 {[%clk 0:00:12]}  Rf2 {[%clk 0:00:07]} 40. Qd7 {[%clk 0:00:11]}  Rg5 {[%clk 0:00:07]} 41. h4 {[%clk 0:00:08]}  Rfxg2+ {[%clk 0:00:05]} 42. Kh1 {[%clk 0:00:07]}  Rg1+ {[%clk 0:00:06]} 43. Kh2 {[%clk 0:00:08]}  R5g2+ {[%clk 0:00:06]} 44. Kh3 {[%clk 0:00:08]}  Rg3+ {[%clk 0:00:07]} 45. Kh2 {[%clk 0:00:09]}  R3g2+ {[%clk 0:00:07]} 46. Kh3 {[%clk 0:00:09]}  Rxa2 {[%clk 0:00:06]} 47. Qxd6 {[%clk 0:00:09]}  Rag2 {[%clk 0:00:04]} 48. Qf8+ {[%clk 0:00:08]}  Kh5 {[%clk 0:00:02]} 49. Qf3+ {[%clk 0:00:07]}  Rg4 {[%clk 0:00:01]} 50. d6 {[%clk 0:00:06]}  g5 {[%clk 0:00:02]} 51. hxg5 {[%clk 0:00:05]}  Kxg5 {[%clk 0:00:02]} 52. Qd5+ {[%clk 0:00:05]}  Kf4 {[%clk 0:00:02]} 53. d7 {[%clk 0:00:04]}  R1g3+ {[%clk 0:00:01]} 54. Kh2 {[%clk 0:00:04]}  Rh4# {[%clk 0:00:02]} 0-1


[Site "https://www.chess.com"]

[Event "Titled Tuesday Blitz May 31 Late 2022"]
[White "Goncalves, Ivan Mesquita V"]
[Black "Nazaretyan, Tigran"]
[WhiteFideId "2114224"]
[BlackFideId "24162345"]
[WhiteElo "2299"]
[BlackElo "2225"]
[Result "1-0"]
[Round "06"]
[TimeControl "180+1"]
[Date "2022.06.01"]
[WhiteClock "0:00:13"]
[BlackClock "0:00:16"]

1. d4 {[%clk 0:03:00]}  Nf6 {[%clk 0:02:54]} 2. Nf3 {[%clk 0:03:01]}  g6 {[%clk 0:02:53]} 3. Bf4 {[%clk 0:03:01]}  Bg7 {[%clk 0:02:53]} 4. e3 {[%clk 0:03:01]}  O-O {[%clk 0:02:53]} 5. Nc3 {[%clk 0:03:02]}  d6 {[%clk 0:02:52]} 6. Qd2 {[%clk 0:03:02]}  Nbd7 {[%clk 0:02:52]} 7. h4 {[%clk 0:03:02]}  c6 {[%clk 0:02:46]} 8. e4 {[%clk 0:02:54]}  b5 {[%clk 0:02:42]} 9. a3 {[%clk 0:02:51]}  a5 {[%clk 0:02:31]} 10. Bh6 {[%clk 0:02:49]}  b4 {[%clk 0:02:24]} 11. axb4 {[%clk 0:02:34]}  axb4 {[%clk 0:02:24]} 12. Rxa8 {[%clk 0:02:34]}  bxc3 {[%clk 0:02:24]} 13. bxc3 {[%clk 0:02:24]}  Nxe4 {[%clk 0:02:24]} 14. Qe3 {[%clk 0:02:21]}  Bxh6 {[%clk 0:01:57]} 15. Qxh6 {[%clk 0:02:19]}  Qb6 {[%clk 0:01:56]} 16. Qc1 {[%clk 0:01:46]}  Nxc3 {[%clk 0:01:43]} 17. Bd3 {[%clk 0:01:37]}  Qb7 {[%clk 0:01:30]} 18. Ra3 {[%clk 0:01:32]}  Qb4 {[%clk 0:01:27]} 19. Rb3 {[%clk 0:01:19]}  Qa5 {[%clk 0:01:23]} 20. O-O {[%clk 0:01:04]}  Nf6 {[%clk 0:01:17]} 21. Qd2 {[%clk 0:00:54]}  Nfd5 {[%clk 0:01:15]} 22. Bc4 {[%clk 0:00:47]}  Ba6 {[%clk 0:00:53]} 23. Bxa6 {[%clk 0:00:47]}  Qxa6 {[%clk 0:00:50]} 24. Rxc3 {[%clk 0:00:46]}  Nxc3 {[%clk 0:00:48]} 25. Qxc3 {[%clk 0:00:46]}  Rb8 {[%clk 0:00:47]} 26. Re1 {[%clk 0:00:44]}  Rb7 {[%clk 0:00:47]} 27. h5 {[%clk 0:00:42]}  gxh5 {[%clk 0:00:35]} 28. Nh4 {[%clk 0:00:38]}  Qb5 {[%clk 0:00:32]} 29. Qg3+ {[%clk 0:00:37]}  Kf8 {[%clk 0:00:31]} 30. Qf4 {[%clk 0:00:34]}  Qa5 {[%clk 0:00:21]} 31. Re3 {[%clk 0:00:23]}  Rb1+ {[%clk 0:00:21]} 32. Kh2 {[%clk 0:00:23]}  Qa1 {[%clk 0:00:21]} 33. Nf5 {[%clk 0:00:19]}  Rh1+ {[%clk 0:00:16]} 34. Kg3 {[%clk 0:00:20]}  h4+ {[%clk 0:00:17]} 35. Kg4 {[%clk 0:00:17]}  h5+ {[%clk 0:00:16]} 36. Kxh5 {[%clk 0:00:13]}  h3 {[%clk 0:00:15]} 37. Qh6+ {[%clk 0:00:12]}  Ke8 {[%clk 0:00:16]} 38. Rxe7+ {[%clk 0:00:13]}  Kd8 {[%clk 0:00:16]} 39. Qf8# {[%clk 0:00:13]} 1-0


[Site "https://www.chess.com"]

[Event "Titled Tuesday Blitz May 31 Late 2022"]
[White "Grischuk, Alexander"]
[Black "Lobanov, Sergei"]
[WhiteFideId "4126025"]
[BlackFideId "24183750"]
[WhiteElo "2762"]
[BlackElo "2524"]
[Result "1-0"]
[Round "06"]
[TimeControl "180+1"]
[Date "2022.05.31"]
[WhiteClock "0:00:05"]
[BlackClock "0:00:04"]

1. d4 {[%clk 0:03:00]}  Nf6 {[%clk 0:03:00]} 2. Nf3 {[%clk 0:03:01]}  d5 {[%clk 0:02:59]} 3. Bf4 {[%clk 0:03:01]}  e6 {[%clk 0:02:57]} 4. Nbd2 {[%clk 0:03:00]}  Bd6 {[%clk 0:02:57]} 5. Bg5 {[%clk 0:03:00]}  h6 {[%clk 0:02:39]} 6. Bxf6 {[%clk 0:03:00]}  Qxf6 {[%clk 0:02:40]} 7. e4 {[%clk 0:03:01]}  dxe4 {[%clk 0:02:36]} 8. Nxe4 {[%clk 0:03:01]}  Qe7 {[%clk 0:02:35]} 9. Bd3 {[%clk 0:02:53]}  b6 {[%clk 0:02:34]} 10. Qe2 {[%clk 0:02:46]}  Bb7 {[%clk 0:02:32]} 11. O-O-O {[%clk 0:02:41]}  Nd7 {[%clk 0:02:32]} 12. Kb1 {[%clk 0:02:40]}  O-O-O {[%clk 0:02:11]} 13. Ba6 {[%clk 0:02:38]}  Kb8 {[%clk 0:01:38]} 14. Bxb7 {[%clk 0:02:38]}  Kxb7 {[%clk 0:01:39]} 15. Rhe1 {[%clk 0:02:39]}  Rhe8 {[%clk 0:01:31]} 16. a3 {[%clk 0:02:19]}  c6 {[%clk 0:01:30]} 17. Nxd6+ {[%clk 0:02:02]}  Qxd6 {[%clk 0:01:31]} 18. c4 {[%clk 0:02:03]}  Qf4 {[%clk 0:01:22]} 19. Ka2 {[%clk 0:01:47]}  g5 {[%clk 0:01:22]} 20. h3 {[%clk 0:01:41]}  h5 {[%clk 0:01:15]} 21. g3 {[%clk 0:01:11]}  Qf5 {[%clk 0:01:10]} 22. Qe3 {[%clk 0:01:11]}  f6 {[%clk 0:00:56]} 23. h4 {[%clk 0:01:05]}  g4 {[%clk 0:00:55]} 24. Nd2 {[%clk 0:01:05]}  b5 {[%clk 0:00:38]} 25. Ne4 {[%clk 0:00:50]}  Nb6 {[%clk 0:00:37]} 26. c5 {[%clk 0:00:51]}  Nc8 {[%clk 0:00:31]} 27. Qb3 {[%clk 0:00:41]}  Rd7 {[%clk 0:00:28]} 28. Nc3 {[%clk 0:00:24]}  a6 {[%clk 0:00:27]} 29. Rd2 {[%clk 0:00:16]}  Rde7 {[%clk 0:00:19]} 30. Rde2 {[%clk 0:00:16]}  Ka7 {[%clk 0:00:16]} 31. a4 {[%clk 0:00:12]}  Kb7 {[%clk 0:00:15]} 32. Rd2 {[%clk 0:00:09]}  Kc7 {[%clk 0:00:13]} 33. Re3 {[%clk 0:00:09]}  Rd7 {[%clk 0:00:10]} 34. Re4 {[%clk 0:00:08]}  Red8 {[%clk 0:00:05]} 35. Qb4 {[%clk 0:00:05]}  Kb7 {[%clk 0:00:03]} 36. Rde2 {[%clk 0:00:04]}  Na7 {[%clk 0:00:02]} 37. Qa5 {[%clk 0:00:04]}  Nc8 {[%clk 0:00:01]} 38. Rxe6 {[%clk 0:00:03]}  Rxd4 {[%clk 0:00:01]} 39. axb5 {[%clk 0:00:03]}  axb5 {[%clk 0:00:01]} 40. Nxb5 {[%clk 0:00:03]}  Qd5+ {[%clk 0:00:01]} 41. Ka3 {[%clk 0:00:03]}  Rd3+ {[%clk 0:00:01]} 42. Nc3 {[%clk 0:00:03]}  Qc4 {[%clk 0:00:01]} 43. Qb4+ {[%clk 0:00:03]}  Qxb4+ {[%clk 0:00:02]} 44. Kxb4 {[%clk 0:00:04]}  R8d4+ {[%clk 0:00:02]} 45. Kb3 {[%clk 0:00:04]}  Rf3 {[%clk 0:00:02]} 46. Kc2 {[%clk 0:00:04]}  Rc4 {[%clk 0:00:02]} 47. Kd2 {[%clk 0:00:03]}  Rxc5 {[%clk 0:00:03]} 48. Ne4 {[%clk 0:00:03]}  Rd5+ {[%clk 0:00:03]} 49. Ke1 {[%clk 0:00:03]}  Rdf5 {[%clk 0:00:02]} 50. Re8 {[%clk 0:00:02]}  Rd5 {[%clk 0:00:01]} 51. Re6 {[%clk 0:00:02]}  Nb6 {[%clk 0:00:02]} 52. Nd6+ {[%clk 0:00:01]}  Kc7 {[%clk 0:00:02]} 53. Ne8+ {[%clk 0:00:01]}  Kb7 {[%clk 0:00:03]} 54. Nxf6 {[%clk 0:00:02]}  Ra5 {[%clk 0:00:03]} 55. Ne4 {[%clk 0:00:01]}  Rd3 {[%clk 0:00:02]} 56. Rd2 {[%clk 0:00:01]}  Rf3 {[%clk 0:00:01]} 57. Ke2 {[%clk 0:00:01]}  Nd5 {[%clk 0:00:02]} 58. Nd6+ {[%clk 0:00:02]}  Kb6 {[%clk 0:00:02]} 59. Nc4+ {[%clk 0:00:03]}  Kb5 {[%clk 0:00:02]} 60. Nxa5 {[%clk 0:00:03]}  Kxa5 {[%clk 0:00:03]} 61. Rxc6 {[%clk 0:00:03]}  Nb4 {[%clk 0:00:03]} 62. Rc5+ {[%clk 0:00:04]}  Ka4 {[%clk 0:00:03]} 63. Rxh5 {[%clk 0:00:04]}  Rf7 {[%clk 0:00:03]} 64. Rg5 {[%clk 0:00:04]}  Re7+ {[%clk 0:00:03]} 65. Kf1 {[%clk 0:00:05]}  Re4 {[%clk 0:00:04]} 66. Re2 {[%clk 0:00:05]}  Rd4 {[%clk 0:00:04]} 67. h5 {[%clk 0:00:05]} 1-0


[Site "https://www.chess.com"]

[Event "Titled Tuesday Blitz May 31 Late 2022"]
[White "Harsh Suresh"]
[Black "Eynullayev, Atilla"]
[WhiteFideId "45018464"]
[BlackFideId "13413570"]
[WhiteElo "2020"]
[BlackElo "1936"]
[Result "0-1"]
[Round "06"]
[TimeControl "180+1"]
[Date "2022.06.01"]
[WhiteClock "0:00:08"]
[BlackClock "0:00:10"]

1. e4 {[%clk 0:03:00]}  c5 {[%clk 0:02:59]} 2. Nf3 {[%clk 0:02:59]}  d6 {[%clk 0:03:00]} 3. d4 {[%clk 0:02:59]}  cxd4 {[%clk 0:03:01]} 4. Nxd4 {[%clk 0:02:59]}  Nf6 {[%clk 0:03:01]} 5. Nc3 {[%clk 0:02:59]}  a6 {[%clk 0:03:02]} 6. Be3 {[%clk 0:02:59]}  g6 {[%clk 0:02:54]} 7. a4 {[%clk 0:02:37]}  Bg7 {[%clk 0:02:50]} 8. f3 {[%clk 0:02:36]}  h5 {[%clk 0:02:50]} 9. Bc4 {[%clk 0:02:32]}  Nbd7 {[%clk 0:02:46]} 10. Qd2 {[%clk 0:02:31]}  b6 {[%clk 0:02:45]} 11. a5 {[%clk 0:01:34]}  b5 {[%clk 0:02:43]} 12. Bd5 {[%clk 0:01:29]}  Nxd5 {[%clk 0:02:34]} 13. Nxd5 {[%clk 0:01:29]}  Bb7 {[%clk 0:02:31]} 14. O-O {[%clk 0:01:28]}  Ne5 {[%clk 0:02:29]} 15. Nb6 {[%clk 0:01:25]}  Rb8 {[%clk 0:02:24]} 16. Rae1 {[%clk 0:01:18]}  O-O {[%clk 0:02:20]} 17. b3 {[%clk 0:01:10]}  Nd7 {[%clk 0:02:10]} 18. Ne2 {[%clk 0:01:07]}  Nxb6 {[%clk 0:01:56]} 19. Bxb6 {[%clk 0:01:06]}  Qd7 {[%clk 0:01:56]} 20. Nf4 {[%clk 0:01:06]}  Rbc8 {[%clk 0:01:55]} 21. e5 {[%clk 0:00:57]}  Qf5 {[%clk 0:01:15]} 22. exd6 {[%clk 0:00:51]}  Rxc2 {[%clk 0:01:15]} 23. Qd3 {[%clk 0:00:31]}  Qxd3 {[%clk 0:01:12]} 24. Nxd3 {[%clk 0:00:32]}  exd6 {[%clk 0:01:13]} 25. Re7 {[%clk 0:00:31]}  Bd5 {[%clk 0:01:09]} 26. Nb4 {[%clk 0:00:30]}  Bxb3 {[%clk 0:00:43]} 27. Nxc2 {[%clk 0:00:29]}  Bxc2 {[%clk 0:00:44]} 28. Rc1 {[%clk 0:00:28]}  Bf5 {[%clk 0:00:39]} 29. Ra7 {[%clk 0:00:25]}  b4 {[%clk 0:00:39]} 30. Rb7 {[%clk 0:00:14]}  b3 {[%clk 0:00:38]} 31. Bc7 {[%clk 0:00:13]}  b2 {[%clk 0:00:37]} 32. Re1 {[%clk 0:00:12]}  Bd4+ {[%clk 0:00:36]} 33. Kh1 {[%clk 0:00:13]}  Rc8 {[%clk 0:00:32]} 34. h4 {[%clk 0:00:09]}  b1=Q {[%clk 0:00:26]} 35. Rexb1 {[%clk 0:00:07]}  Bxb1 {[%clk 0:00:27]} 36. Bxd6 {[%clk 0:00:08]}  Bd3 {[%clk 0:00:25]} 37. Kh2 {[%clk 0:00:08]}  Bb5 {[%clk 0:00:26]} 38. Bg3 {[%clk 0:00:08]}  Bf6 {[%clk 0:00:24]} 39. Rb6 {[%clk 0:00:07]}  Kg7 {[%clk 0:00:25]} 40. Rb7 {[%clk 0:00:07]}  Rc6 {[%clk 0:00:25]} 41. Rb6 {[%clk 0:00:05]}  Rc4 {[%clk 0:00:24]} 42. Rb7 {[%clk 0:00:05]}  Bxh4 {[%clk 0:00:24]} 43. Be5+ {[%clk 0:00:04]}  Bf6 {[%clk 0:00:23]} 44. Bg3 {[%clk 0:00:04]}  h4 {[%clk 0:00:23]} 45. Bb8 {[%clk 0:00:03]}  Bd8 {[%clk 0:00:20]} 46. Bd6 {[%clk 0:00:03]}  Bxa5 {[%clk 0:00:20]} 47. Be5+ {[%clk 0:00:03]}  Kf8 {[%clk 0:00:17]} 48. Bf6 {[%clk 0:00:03]}  Be8 {[%clk 0:00:16]} 49. Kh3 {[%clk 0:00:03]}  Rc6 {[%clk 0:00:15]} 50. Bxh4 {[%clk 0:00:02]}  Bc7 {[%clk 0:00:14]} 51. Ra7 {[%clk 0:00:02]}  a5 {[%clk 0:00:14]} 52. g4 {[%clk 0:00:03]}  Rc3 {[%clk 0:00:11]} 53. Kg2 {[%clk 0:00:02]}  a4 {[%clk 0:00:11]} 54. Bf6 {[%clk 0:00:01]}  Rc2+ {[%clk 0:00:11]} 55. Kf1 {[%clk 0:00:02]}  Bb5+ {[%clk 0:00:11]} 56. Ke1 {[%clk 0:00:03]}  Ke8 {[%clk 0:00:11]} 57. Ra8+ {[%clk 0:00:02]}  Kd7 {[%clk 0:00:11]} 58. Kd1 {[%clk 0:00:03]}  Rc6 {[%clk 0:00:11]} 59. g5 {[%clk 0:00:03]}  Ra6 {[%clk 0:00:11]} 60. Rf8 {[%clk 0:00:02]}  a3 {[%clk 0:00:11]} 61. Rxf7+ {[%clk 0:00:03]}  Kc6 {[%clk 0:00:12]} 62. Ba1 {[%clk 0:00:02]}  a2 {[%clk 0:00:12]} 63. Rf6+ {[%clk 0:00:03]}  Kb7 {[%clk 0:00:12]} 64. Rf7 {[%clk 0:00:03]}  Bc4 {[%clk 0:00:09]} 65. Kc1 {[%clk 0:00:04]}  Bxf7 {[%clk 0:00:09]} 66. Kb2 {[%clk 0:00:04]}  Be5+ {[%clk 0:00:08]} 67. Kc2 {[%clk 0:00:03]}  Bxa1 {[%clk 0:00:09]} 68. f4 {[%clk 0:00:04]}  Bh8 {[%clk 0:00:10]} 69. f5 {[%clk 0:00:05]}  a1=Q {[%clk 0:00:09]} 70. fxg6 {[%clk 0:00:06]}  Rc6+ {[%clk 0:00:08]} 71. Kd3 {[%clk 0:00:06]}  Qd4+ {[%clk 0:00:08]} 72. Ke2 {[%clk 0:00:06]}  Rc2+ {[%clk 0:00:08]} 73. Kf3 {[%clk 0:00:07]}  Rf2+ {[%clk 0:00:08]} 74. Kg3 {[%clk 0:00:08]}  Qf4+ {[%clk 0:00:09]} 75. Kh3 {[%clk 0:00:08]}  Rh2# {[%clk 0:00:10]} 0-1


[Site "https://www.chess.com"]

[Event "Titled Tuesday Blitz May 31 Late 2022"]
[White "Ibarra Jerez, Jose Carlos"]
[Black "Sargsyan, Anna M."]
[WhiteFideId "2226332"]
[BlackFideId "13308130"]
[WhiteElo "2626"]
[BlackElo "2271"]
[Result "1-0"]
[Round "06"]
[TimeControl "180+1"]
[Date "2022.05.31"]
[WhiteClock "0:00:15"]
[BlackClock "0:00:02"]

1. Nf3 {[%clk 0:03:00]}  Nf6 {[%clk 0:02:58]} 2. g3 {[%clk 0:03:01]}  g6 {[%clk 0:02:58]} 3. b3 {[%clk 0:03:01]}  Bg7 {[%clk 0:02:58]} 4. Bb2 {[%clk 0:03:02]}  O-O {[%clk 0:02:59]} 5. Bg2 {[%clk 0:03:03]}  d6 {[%clk 0:02:57]} 6. d4 {[%clk 0:03:02]}  Re8 {[%clk 0:02:52]} 7. O-O {[%clk 0:03:02]}  Nbd7 {[%clk 0:02:52]} 8. c4 {[%clk 0:02:55]}  Ne4 {[%clk 0:02:44]} 9. Qc2 {[%clk 0:02:45]}  f5 {[%clk 0:02:43]} 10. Rd1 {[%clk 0:02:25]}  Ndf6 {[%clk 0:02:39]} 11. Nc3 {[%clk 0:02:20]}  Bd7 {[%clk 0:02:27]} 12. d5 {[%clk 0:02:18]}  e5 {[%clk 0:02:23]} 13. dxe6 {[%clk 0:02:18]}  Bxe6 {[%clk 0:02:23]} 14. Nd4 {[%clk 0:02:14]}  Bf7 {[%clk 0:02:19]} 15. e3 {[%clk 0:02:10]}  a6 {[%clk 0:02:12]} 16. Rac1 {[%clk 0:02:02]}  Bh6 {[%clk 0:01:58]} 17. Nxe4 {[%clk 0:01:59]}  Nxe4 {[%clk 0:01:58]} 18. Re1 {[%clk 0:01:42]}  Qe7 {[%clk 0:01:40]} 19. Rcd1 {[%clk 0:01:32]}  Rad8 {[%clk 0:01:40]} 20. Nf3 {[%clk 0:01:25]}  c6 {[%clk 0:01:15]} 21. Ba1 {[%clk 0:01:20]}  Bg7 {[%clk 0:01:00]} 22. Bxg7 {[%clk 0:01:21]}  Kxg7 {[%clk 0:01:01]} 23. Rd4 {[%clk 0:01:17]}  d5 {[%clk 0:00:56]} 24. cxd5 {[%clk 0:01:00]}  Bxd5 {[%clk 0:00:55]} 25. Red1 {[%clk 0:00:58]}  Kg8 {[%clk 0:00:50]} 26. b4 {[%clk 0:00:55]}  Nd6 {[%clk 0:00:45]} 27. a4 {[%clk 0:00:50]}  b5 {[%clk 0:00:38]} 28. a5 {[%clk 0:00:45]}  Nc4 {[%clk 0:00:34]} 29. Qc3 {[%clk 0:00:45]}  Bf7 {[%clk 0:00:28]} 30. h4 {[%clk 0:00:38]}  Bd5 {[%clk 0:00:23]} 31. Kh2 {[%clk 0:00:35]}  Nd6 {[%clk 0:00:23]} 32. Ng5 {[%clk 0:00:29]}  Bxg2 {[%clk 0:00:20]} 33. Kxg2 {[%clk 0:00:30]}  h6 {[%clk 0:00:20]} 34. Qxc6 {[%clk 0:00:27]}  hxg5 {[%clk 0:00:14]} 35. Rxd6 {[%clk 0:00:27]}  Rxd6 {[%clk 0:00:15]} 36. Rxd6 {[%clk 0:00:28]}  Qe4+ {[%clk 0:00:12]} 37. Qxe4 {[%clk 0:00:27]}  Rxe4 {[%clk 0:00:13]} 38. Rxg6+ {[%clk 0:00:27]}  Kf7 {[%clk 0:00:10]} 39. Rxg5 {[%clk 0:00:27]}  Rxb4 {[%clk 0:00:11]} 40. Rxf5+ {[%clk 0:00:27]}  Kg7 {[%clk 0:00:07]} 41. h5 {[%clk 0:00:20]}  Ra4 {[%clk 0:00:07]} 42. Rc5 {[%clk 0:00:19]}  Rxa5 {[%clk 0:00:07]} 43. g4 {[%clk 0:00:19]}  Ra4 {[%clk 0:00:07]} 44. f4 {[%clk 0:00:17]}  Ra2+ {[%clk 0:00:07]} 45. Kg3 {[%clk 0:00:17]}  b4 {[%clk 0:00:07]} 46. Rc7+ {[%clk 0:00:17]}  Kg8 {[%clk 0:00:05]} 47. Rb7 {[%clk 0:00:18]}  a5 {[%clk 0:00:04]} 48. g5 {[%clk 0:00:18]}  Re2 {[%clk 0:00:05]} 49. Kf3 {[%clk 0:00:18]}  Rh2 {[%clk 0:00:05]} 50. h6 {[%clk 0:00:18]}  Kf8 {[%clk 0:00:03]} 51. Kg4 {[%clk 0:00:16]}  a4 {[%clk 0:00:02]} 52. Rxb4 {[%clk 0:00:15]}  a3 {[%clk 0:00:02]} 53. Ra4 {[%clk 0:00:16]}  a2 {[%clk 0:00:03]} 54. Kf5 {[%clk 0:00:15]}  Ke7 {[%clk 0:00:03]} 55. Kg6 {[%clk 0:00:14]}  Kd6 {[%clk 0:00:02]} 56. h7 {[%clk 0:00:15]} 1-0


[Site "https://www.chess.com"]

[Event "Titled Tuesday Blitz May 31 Late 2022"]
[White "Ivic, Velimir"]
[Black "Harvey, Marcus R"]
[WhiteFideId "950122"]
[BlackFideId "400092"]
[WhiteElo "2610"]
[BlackElo "2485"]
[Result "1-0"]
[Round "06"]
[TimeControl "180+1"]
[Date "2022.05.31"]
[WhiteClock "0:02:15"]
[BlackClock "0:00:02"]

1. c4 {[%clk 0:03:00]}  Nf6 {[%clk 0:02:58]} 2. Nc3 {[%clk 0:03:00]}  e6 {[%clk 0:02:49]} 3. d4 {[%clk 0:03:00]}  Bb4 {[%clk 0:02:48]} 4. Nf3 {[%clk 0:02:47]}  O-O {[%clk 0:02:42]} 5. g3 {[%clk 0:02:47]}  c5 {[%clk 0:02:42]} 6. dxc5 {[%clk 0:02:45]}  Na6 {[%clk 0:02:41]} 7. Bg2 {[%clk 0:02:45]}  Nxc5 {[%clk 0:02:39]} 8. O-O {[%clk 0:02:45]}  Bxc3 {[%clk 0:02:38]} 9. bxc3 {[%clk 0:02:46]}  d6 {[%clk 0:02:38]} 10. Bg5 {[%clk 0:02:41]}  h6 {[%clk 0:02:34]} 11. Bxf6 {[%clk 0:02:40]}  Qxf6 {[%clk 0:02:35]} 12. Qxd6 {[%clk 0:02:40]}  Ne4 {[%clk 0:02:35]} 13. Qd3 {[%clk 0:02:38]}  Nxc3 {[%clk 0:02:32]} 14. a4 {[%clk 0:02:25]}  Rd8 {[%clk 0:02:22]} 15. Qe3 {[%clk 0:02:25]}  Bd7 {[%clk 0:02:15]} 16. Ne5 {[%clk 0:02:25]}  Nxa4 {[%clk 0:00:11]} 17. Nxd7 {[%clk 0:02:23]}  Qc3 {[%clk 0:00:11]} 18. Rxa4 {[%clk 0:02:21]}  Qxe3 {[%clk 0:00:10]} 19. fxe3 {[%clk 0:02:22]}  Rxd7 {[%clk 0:00:10]} 20. Rb1 {[%clk 0:02:23]}  Rad8 {[%clk 0:00:02]} 21. Rxb7 {[%clk 0:02:22]}  Rd1+ {[%clk 0:00:02]} 22. Kf2 {[%clk 0:02:22]}  Rc1 {[%clk 0:00:01]} 23. Raxa7 {[%clk 0:02:21]}  Rf8 {[%clk 0:00:02]} 24. Rc7 {[%clk 0:02:21]}  g5 {[%clk 0:00:02]} 25. c5 {[%clk 0:02:20]}  Rc3 {[%clk 0:00:03]} 26. c6 {[%clk 0:02:20]}  Kg7 {[%clk 0:00:04]} 27. Be4 {[%clk 0:02:19]}  Kf6 {[%clk 0:00:04]} 28. Bd3 {[%clk 0:02:19]}  Rc5 {[%clk 0:00:04]} 29. Rab7 {[%clk 0:02:15]}  h5 {[%clk 0:00:04]} 30. Rb5 {[%clk 0:02:15]}  Rc1 {[%clk 0:00:04]} 31. Rb4 {[%clk 0:02:15]}  Rd8 {[%clk 0:00:01]} 32. Rc4 {[%clk 0:02:15]}  Rf8 {[%clk 0:00:02]} 33. Rxc1 {[%clk 0:02:15]} 1-0


[Site "https://www.chess.com"]

[Event "Titled Tuesday Blitz May 31 Late 2022"]
[White "Janaszak, Dawid"]
[Black "D`Arruda, Ricardo D."]
[WhiteFideId "1119206"]
[BlackFideId "100692"]
[WhiteElo "2199"]
[BlackElo "2443"]
[Result "1-0"]
[Round "06"]
[TimeControl "180+1"]
[Date "2022.06.01"]
[WhiteClock "0:00:11"]
[BlackClock "0:00:01"]

1. e4 {[%clk 0:03:00]}  c5 {[%clk 0:02:56]} 2. Nc3 {[%clk 0:03:00]}  e6 {[%clk 0:02:55]} 3. Nge2 {[%clk 0:02:57]}  Nc6 {[%clk 0:02:55]} 4. g3 {[%clk 0:02:56]}  Nf6 {[%clk 0:02:52]} 5. Bg2 {[%clk 0:02:56]}  Rb8 {[%clk 0:02:52]} 6. d4 {[%clk 0:02:56]}  cxd4 {[%clk 0:02:49]} 7. Nxd4 {[%clk 0:02:57]}  Be7 {[%clk 0:02:41]} 8. O-O {[%clk 0:02:52]}  O-O {[%clk 0:02:40]} 9. Nxc6 {[%clk 0:02:36]}  bxc6 {[%clk 0:02:34]} 10. e5 {[%clk 0:02:36]}  Nd5 {[%clk 0:02:33]} 11. Ne4 {[%clk 0:02:36]}  f5 {[%clk 0:02:30]} 12. exf6 {[%clk 0:02:33]}  Nxf6 {[%clk 0:02:19]} 13. c3 {[%clk 0:02:17]}  d5 {[%clk 0:02:14]} 14. Ng5 {[%clk 0:02:13]}  e5 {[%clk 0:02:10]} 15. Qc2 {[%clk 0:02:09]}  h6 {[%clk 0:02:04]} 16. Nf3 {[%clk 0:02:09]}  Bd6 {[%clk 0:01:49]} 17. Re1 {[%clk 0:02:04]}  Qc7 {[%clk 0:01:46]} 18. Qg6 {[%clk 0:01:56]}  Bg4 {[%clk 0:01:00]} 19. h3 {[%clk 0:01:29]}  Bh5 {[%clk 0:00:59]} 20. Qf5 {[%clk 0:01:17]}  Rbe8 {[%clk 0:00:45]} 21. Be3 {[%clk 0:01:07]}  Bf7 {[%clk 0:00:34]} 22. Qc2 {[%clk 0:01:02]}  Be6 {[%clk 0:00:31]} 23. Nh4 {[%clk 0:01:00]}  g5 {[%clk 0:00:24]} 24. Nf5 {[%clk 0:00:57]}  Qh7 {[%clk 0:00:20]} 25. g4 {[%clk 0:00:53]}  Bxf5 {[%clk 0:00:20]} 26. gxf5 {[%clk 0:00:54]}  Nh5 {[%clk 0:00:17]} 27. Qa4 {[%clk 0:00:45]}  Rc8 {[%clk 0:00:13]} 28. Qxa7 {[%clk 0:00:44]}  Qxf5 {[%clk 0:00:09]} 29. Rf1 {[%clk 0:00:31]}  Nf4 {[%clk 0:00:09]} 30. Bxf4 {[%clk 0:00:29]}  Qxf4 {[%clk 0:00:10]} 31. Qe3 {[%clk 0:00:28]}  Qf5 {[%clk 0:00:11]} 32. Rad1 {[%clk 0:00:23]}  e4 {[%clk 0:00:11]} 33. Rfe1 {[%clk 0:00:13]}  Bf4 {[%clk 0:00:10]} 34. Qc5 {[%clk 0:00:13]}  Rf6 {[%clk 0:00:09]} 35. c4 {[%clk 0:00:12]}  e3 {[%clk 0:00:04]} 36. cxd5 {[%clk 0:00:11]}  exf2+ {[%clk 0:00:03]} 37. Kxf2 {[%clk 0:00:11]}  Bh2+ {[%clk 0:00:02]} 38. Ke2 {[%clk 0:00:11]}  Re8+ {[%clk 0:00:01]} 39. Kd2 {[%clk 0:00:11]}  Bf4+ {[%clk 0:00:01]} 40. Kc3 {[%clk 0:00:11]} 1-0


[Site "https://www.chess.com"]